fUST/lending_fUST_20240906
["ID","MTS","AMOUNT","RATE_DAILY","PERIOD"]
[337277175,1725573091705,-202.22616718,0.00023287,2]
[337277176,1725573091716,-500.0,0.00023287,2]
[337277177,1725573091726,-500.0,0.00023287,2]
[337277178,1725573091738,-500.0,0.00023287,2]
[337277179,1725573091749,-500.0,0.00023287,2]
[337277180,1725573091759,-552.14,0.00023287,2]
[337277181,1725573091769,-500.0,0.00023287,2]
[337277182,1725573091780,-500.0,0.00023287,2]
[337277183,1725573091790,-500.0,0.00023287,2]
[337277184,1725573091799,-990.72,0.00023287,2]
[337277185,1725573091810,-500.0,0.00023287,2]
[337277186,1725573091819,-500.0,0.00023287,2]
[337277187,1725573091830,-500.0,0.00023287,2]
[337277188,1725573091839,-967.82,0.00023287,2]
[337277189,1725573091849,-888.41,0.00023287,2]
[337277190,1725573091858,-500.0,0.00023287,2]
[337277191,1725573091869,-606.39,0.00023287,2]
[337277192,1725573091879,-500.0,0.00023287,2]
[337277193,1725573091888,-500.0,0.00023287,2]
[337277194,1725573091898,-500.0,0.00023287,2]
[337277195,1725573091907,-1160.38,0.00023287,2]
[337277196,1725573091917,-1034.45,0.00023287,2]
[337277197,1725573091928,-519.92229534,0.00023287,2]
[337277198,1725573091939,-500.0,0.00023287,2]
[337277199,1725573091951,-500.0,0.00023287,2]
[337277200,1725573091963,-500.0,0.00023287,2]
[337277201,1725573091975,-500.0,0.00023287,2]
[337277202,1725573091985,-500.0,0.00023287,2]
[337277203,1725573091996,-565.45209342,0.00023287,2]
[337277204,1725573092007,-500.0,0.00023287,2]
[337277205,1725573092018,-500.0,0.00023287,2]
[337277206,1725573092030,-504.55850804,0.00023287,2]
[337277207,1725573092040,-500.0,0.00023287,2]
[337277208,1725573092052,-509.25069002,0.00023287,2]
[337277209,1725573092064,-500.0,0.00023287,2]
[337277210,1725573092076,-500.0,0.00023287,2]
[337277211,1725573092088,-500.0,0.00023287,2]
[337277212,1725573092100,-500.0,0.00023287,2]
[337277213,1725573092111,-500.0,0.00023287,2]
[337277214,1725573092122,-500.0,0.00023287,2]
[337277215,1725573092132,-500.0,0.00023287,2]
[337277216,1725573092277,-500.0,0.00023287,2]
[337277217,1725573092287,-500.0,0.00023287,2]
[337277218,1725573092298,-500.0,0.00023287,2]
[337277219,1725573092308,-500.0,0.00023287,2]
[337277220,1725573092320,-1055.78,0.00023287,2]
[337277221,1725573092330,-709.32,0.00023287,2]
[337277222,1725573092340,-500.0,0.00023287,2]
[337277223,1725573092351,-500.0,0.00023287,2]
[337277224,1725573092361,-609.69279531,0.00023287,2]
[337277225,1725573092374,-1000.0,0.00023287,7]
[337277226,1725573092385,-1000.0,0.00023287,7]
[337277227,1725573092397,-322.52079929,0.00023287,7]
[337277228,1725573092407,-528.03,0.00023287,2]
[337277229,1725573092417,-500.0,0.00023287,2]
[337277230,1725573092427,-500.0,0.00023287,2]
[337277231,1725573092436,-500.0,0.00023287,2]
[337277232,1725573092446,-500.0,0.00023287,2]
[337277233,1725573092456,-500.0,0.00023287,2]
[337277234,1725573092465,-500.0,0.00023287,2]
[337277235,1725573092475,-500.0,0.00023287,2]
[337277236,1725573092485,-500.0,0.00023287,2]
[337277237,1725573092494,-500.0,0.00023287,2]
[337277238,1725573092503,-500.0,0.00023287,2]
[337277239,1725573092513,-500.0,0.00023287,2]
[337277240,1725573092523,-1309.6,0.00023287,2]
[337277241,1725573092535,-597.29,0.00023287,2]
[337277242,1725573092545,-292.76693681,0.00023287,2]
[337277243,1725573092554,-500.0,0.00023287,2]
[337277244,1725573092563,-707.89,0.00023287,2]
[337277245,1725573092574,-500.0,0.00023287,2]
[337277246,1725573092583,-500.0,0.00023287,2]
[337277247,1725573092593,-500.0,0.00023287,2]
[337277248,1725573092604,-637.08,0.00023287,2]
[337277249,1725573092613,-500.0,0.00023287,2]
[337277250,1725573092623,-500.0,0.00023287,2]
[337277251,1725573092643,-500.0,0.00023287,2]
[337277252,1725573092653,-500.0,0.00023287,2]
[337277253,1725573092663,-500.0,0.00023287,2]
[337277254,1725573092672,-500.0,0.00023287,2]
[337277255,1725573092682,-500.0,0.00023287,2]
[337277256,1725573092692,-500.0,0.00023287,2]
[337277257,1725573092702,-500.0,0.00023287,2]
[337277258,1725573092711,-538.39273093,0.00023287,2]
[337277259,1725573092721,-500.0,0.00023287,2]
[337277260,1725573092732,-500.0,0.00023287,2]
[337277261,1725573092742,-500.0,0.00023287,2]
[337277262,1725573092754,-1529.25,0.00023287,2]
[337277263,1725573092764,-500.0,0.00023287,2]
[337277264,1725573092774,-500.0,0.00023287,2]
[337277265,1725573092784,-512.48,0.00023287,2]
[337277266,1725573092793,-1497.88,0.00023287,2]
[337277267,1725573092803,-500.0,0.00023287,2]
[337277268,1725573092812,-3384.84,0.00023287,2]
[337277269,1725573092822,-1224.58,0.00023287,2]
[337277270,1725573092832,-500.0,0.00023287,2]
[337277271,1725573092842,-500.0,0.00023287,2]
[337277272,1725573092853,-500.0,0.00023287,2]
[337277273,1725573092863,-500.0,0.00023287,2]
[337277274,1725573092872,-500.0,0.00023287,2]
[337277275,1725573092882,-500.0,0.00023287,2]
[337277276,1725573092891,-1508.59,0.00023287,2]
[337277277,1725573092901,-500.0,0.00023287,2]
[337277278,1725573092911,-500.0,0.00023287,2]
[337277279,1725573092921,-948.48,0.00023287,2]
[337277280,1725573092931,-500.0,0.00023287,2]
[337277281,1725573092940,-500.0,0.00023287,2]
[337277282,1725573092951,-500.0,0.00023287,2]
[337277283,1725573092961,-509.6,0.00023287,2]
[337277284,1725573092971,-500.0,0.00023287,2]
[337277285,1725573092980,-3334.83,0.00023287,2]
[337277286,1725573092991,-500.0,0.00023287,2]
[337277287,1725573093001,-956.86,0.00023287,2]
[337277288,1725573093011,-500.0,0.00023287,2]
[337277289,1725573093021,-500.0,0.00023287,2]
[337277290,1725573093031,-500.0,0.00023287,2]
[337277291,1725573093041,-807.1,0.00023287,2]
[337277292,1725573093052,-500.0,0.00023287,2]
[337277293,1725573093062,-500.0,0.00023287,2]
[337277294,1725573093072,-500.0,0.00023287,2]
[337277295,1725573093083,-500.0,0.00023287,2]
[337277296,1725573093093,-545.62,0.00023287,2]
[337277297,1725573093103,-500.0,0.00023287,2]
[337277298,1725573093113,-500.0,0.00023287,2]
[337277299,1725573093125,-500.0,0.00023287,2]
[337277300,1725573093135,-500.0,0.00023287,2]
[337277301,1725573093146,-500.0,0.00023287,2]
[337277302,1725573093156,-500.0,0.00023287,2]
[337277303,1725573093166,-500.0,0.00023287,2]
[337277304,1725573093176,-1234.38,0.00023287,2]
[337277305,1725573093186,-1688.93,0.00023287,2]
[337277306,1725573093197,-500.0,0.00023287,2]
[337277307,1725573093208,-500.0,0.00023287,2]
[337277308,1725573093218,-500.0,0.00023287,2]
[337277309,1725573093228,-522.39757231,0.00023287,2]
[337277310,1725573093238,-500.0,0.00023287,2]
[337277311,1725573093248,-775.84,0.00023287,2]
[337277312,1725573093258,-6155.32,0.00023287,2]
[337277313,1725573093268,-500.0,0.00023287,2]
[337277314,1725573093278,-283.2096701,0.00023287,2]
[337277315,1725573093288,-500.0,0.00023287,2]
[337277316,1725573093298,-1513.75,0.00023287,2]
[337277317,1725573093308,-500.0,0.00023287,2]
[337277318,1725573093318,-502.37887267,0.00023287,2]
[337277319,1725573093329,-411.14972853,0.00023287,2]
[337277320,1725573093339,-500.0,0.00023287,2]
[337277321,1725573093350,-500.0,0.00023287,2]
[337277322,1725573093361,-1384.94,0.00023287,2]
[337277323,1725573093373,-200.0,0.00023287,2]
[337277324,1725573093384,-891.8,0.00023287,2]
[337277325,1725573093395,-1454.37,0.00023287,2]
[337277326,1725573093406,-500.0,0.00023287,2]
[337277327,1725573093416,-727.07,0.00023287,2]
[337277328,1725573093427,-500.0,0.00023287,2]
[337277329,1725573093438,-803.53,0.00023287,2]
[337277330,1725573093451,-500.0,0.00023287,2]
[337277331,1725573093462,-500.0,0.00023287,2]
[337277332,1725573093473,-500.0,0.00023287,2]
[337277333,1725573093483,-614.18536515,0.00023287,2]
[337277334,1725573093494,-511.67325628,0.00023287,2]
[337277335,1725573093505,-500.0,0.00023287,2]
[337277336,1725573093515,-500.0,0.00023287,2]
[337277337,1725573093525,-3161.3,0.00023287,2]
[337277338,1725573093537,-1185.19,0.00023287,2]
[337277339,1725573093547,-831.41,0.00023287,2]
[337277340,1725573093556,-500.0,0.00023287,2]
[337277341,1725573093567,-1174.57,0.00023287,2]
[337277342,1725573093576,-500.0,0.00023287,2]
[337277343,1725573093587,-517.39359122,0.00023287,2]
[337277344,1725573093599,-500.0,0.00023287,2]
[337277345,1725573093611,-7144.8,0.00023287,2]
[337277346,1725573093622,-500.0,0.00023287,2]
[337277347,1725573093632,-500.0,0.00023287,2]
[337277348,1725573093642,-11733.4,0.00023287,2]
[337277349,1725573093653,-500.0,0.00023287,2]
[337277350,1725573093664,-500.0,0.00023287,2]
[337277351,1725573093675,-500.0,0.00023287,2]
[337277352,1725573093687,-4398.52,0.00023287,2]
[337277353,1725573093698,-1185.15,0.00023287,2]
[337277354,1725573093709,-544.5,0.00023287,2]
[337277355,1725573093718,-500.0,0.00023287,2]
[337277356,1725573093731,-13227.74,0.00023287,2]
[337277357,1725573093743,-1466.8,0.00023287,2]
[337277358,1725573093753,-500.0,0.00023287,2]
[337277359,1725573093763,-261.35013042,0.00023287,2]
[337277360,1725573093772,-500.0,0.00023287,2]
[337277361,1725573093783,-500.0,0.00023287,2]
[337277362,1725573093793,-500.0,0.00023287,2]
[337277363,1725573093803,-8686.28,0.00023287,2]
[337277364,1725573093813,-1353.11,0.00023287,2]
[337277365,1725573093823,-500.0,0.00023287,2]
[337277366,1725573093833,-500.0,0.00023287,2]
[337277367,1725573093843,-500.0,0.00023287,2]
[337277368,1725573093852,-500.0,0.00023287,2]
[337277369,1725573093862,-500.0,0.00023287,2]
[337277370,1725573093874,-500.0,0.00023287,2]
[337277371,1725573093886,-500.0,0.00023287,2]
[337277372,1725573093897,-590.9,0.00023287,2]
[337277373,1725573093908,-704.28,0.00023287,2]
[337277374,1725573093918,-1233.53,0.00023287,2]
[337277375,1725573093928,-500.0,0.00023287,2]
[337277376,1725573093938,-900.4,0.00023287,2]
[337277377,1725573093947,-308.33732756,0.00023287,2]
[337277378,1725573093958,-500.0,0.00023287,2]
[337277379,1725573093970,-500.0,0.00023287,2]
[337277380,1725573093980,-1358.39,0.00023287,2]
[337277381,1725573093990,-500.0,0.00023287,2]
[337277382,1725573094002,-823.63,0.00023287,2]
[337277383,1725573094012,-500.0,0.00023287,2]
[337277384,1725573094023,-509.12,0.00023287,2]
[337277385,1725573094036,-7723.59,0.00023287,2]
[337277386,1725573094046,-1103.42,0.00023287,2]
[337277387,1725573094057,-500.0,0.00023287,2]
[337277388,1725573094068,-500.0,0.00023287,2]
[337277389,1725573094079,-500.0,0.00023287,2]
[337277390,1725573094088,-500.0,0.00023287,2]
[337277391,1725573094100,-500.0,0.00023287,2]
[337277392,1725573094110,-628.33,0.00023287,2]
[337277393,1725573094122,-500.0,0.00023287,2]
[337277394,1725573094131,-500.0,0.00023287,2]
[337277395,1725573094142,-2578.29,0.00023287,2]
[337277396,1725573094152,-500.0,0.00023287,2]
[337277397,1725573094161,-500.0,0.00023287,2]
[337277398,1725573094171,-500.0,0.00023287,2]
[337277399,1725573094181,-500.0,0.00023287,2]
[337277400,1725573094192,-500.0,0.00023287,2]
[337277401,1725573094203,-1129.73,0.00023287,2]
[337277402,1725573094214,-1133.56,0.00023287,2]
[337277403,1725573094224,-1144.17,0.00023287,2]
[337277404,1725573094235,-576.09618642,0.00023287,2]
[337277405,1725573094245,-500.0,0.00023287,2]
[337277406,1725573094255,-938.87,0.00023287,2]
[337277407,1725573094375,-500.0,0.00023287,2]
[337277408,1725573094384,-500.0,0.00023287,2]
[337277409,1725573094393,-3954.36,0.00023287,2]
[337277410,1725573094403,-500.0,0.00023287,2]
[337277411,1725573094412,-500.0,0.00023287,2]
[337277412,1725573094421,-563.72,0.00023287,2]
[337277413,1725573094431,-500.0,0.00023287,2]
[337277414,1725573094441,-500.0,0.00023287,2]
[337277415,1725573094451,-828.83,0.00023287,2]
[337277416,1725573094461,-500.0,0.00023287,2]
[337277417,1725573094473,-7650.67,0.00023287,2]
[337277418,1725573094484,-500.0,0.00023287,2]
[337277419,1725573094493,-686.81,0.00023287,2]
[337277420,1725573094504,-638.15,0.00023287,2]
[337277421,1725573094515,-500.0,0.00023287,2]
[337277422,1725573094525,-500.0,0.00023287,2]
[337277423,1725573094536,-272.83633521,0.00023287,2]
[337277424,1725573094546,-500.0,0.00023287,2]
[337277425,1725573094557,-871.34,0.00023287,2]
[337277426,1725573094568,-500.0,0.00023287,2]
[337277427,1725573094579,-500.0,0.00023287,2]
[337277428,1725573094590,-500.0,0.00023287,2]
[337277429,1725573094600,-500.0,0.00023287,2]
[337277430,1725573094613,-500.0,0.00023287,2]
[337277431,1725573094624,-970.45,0.00023287,2]
[337277432,1725573094634,-500.0,0.00023287,2]
[337277433,1725573094643,-500.0,0.00023287,2]
[337277434,1725573094653,-500.0,0.00023287,2]
[337277435,1725573094664,-875.36,0.00023287,2]
[337277436,1725573094675,-500.0,0.00023287,2]
[337277437,1725573094686,-1709.21,0.00023287,2]
[337277438,1725573094697,-507.59135298,0.00023287,2]
[337277439,1725573094707,-5424.64,0.00023287,2]
[337277440,1725573094717,-186.4385285,0.00023287,2]
[337277441,1725573094727,-500.0,0.00023287,2]
[337277442,1725573094736,-502.29895088,0.00023287,2]
[337277443,1725573094746,-1320.86,0.00023287,2]
[337277444,1725573094756,-646.37,0.00023287,2]
[337277445,1725573094767,-777.39,0.00023287,2]
[337277446,1725573094778,-4959.4,0.00023287,2]
[337277447,1725573094788,-1196.83,0.00023287,2]
[337277448,1725573094799,-500.0,0.00023287,2]
[337277449,1725573094810,-589.02,0.00023287,2]
[337277450,1725573094822,-500.0,0.00023287,2]
[337277451,1725573094833,-500.0,0.00023287,2]
[337277452,1725573094843,-500.0,0.00023287,2]
[337277453,1725573094854,-500.0,0.00023287,2]
[337277454,1725573094865,-500.0,0.00023287,2]
[337277455,1725573094877,-500.0,0.00023287,2]
[337277456,1725573094887,-500.0,0.00023287,2]
[337277457,1725573094897,-500.0,0.00023287,2]
[337277458,1725573094907,-948.09,0.00023287,2]
[337277459,1725573094916,-500.0,0.00023287,2]
[337277460,1725573094926,-500.0,0.00023287,2]
[337277461,1725573094936,-500.0,0.00023287,2]
[337277462,1725573094945,-500.0,0.00023287,2]
[337277463,1725573094956,-500.0,0.00023287,2]
[337277464,1725573094965,-500.0,0.00023287,2]
[337277465,1725573094975,-500.0,0.00023287,2]
[337277466,1725573094984,-500.0,0.00023287,2]
[337277467,1725573094993,-500.0,0.00023287,2]
[337277468,1725573095002,-946.95,0.00023287,2]
[337277469,1725573095012,-500.0,0.00023287,2]
[337277470,1725573095022,-512.64591036,0.00023287,2]
[337277471,1725573095031,-500.0,0.00023287,2]
[337277472,1725573095041,-500.0,0.00023287,2]
[337277473,1725573095050,-500.0,0.00023287,2]
[337277474,1725573095059,-1557.31,0.00023287,2]
[337277475,1725573095069,-6005.41,0.00023287,2]
[337277476,1725573095078,-500.0,0.00023287,2]
[337277477,1725573095088,-512.34919073,0.00023287,2]
[337277478,1725573095097,-7130.97,0.00023287,2]
[337277479,1725573095107,-500.0,0.00023287,2]
[337277480,1725573095117,-500.0,0.00023287,2]
[337277481,1725573095128,-500.0,0.00023287,2]
[337277482,1725573095138,-983.46,0.00023287,2]
[337277483,1725573095149,-500.0,0.00023287,2]
[337277484,1725573095159,-788.94,0.00023287,2]
[337277485,1725573095169,-500.0,0.00023287,2]
[337277486,1725573095179,-1361.66,0.00023287,2]
[337277487,1725573095191,-500.0,0.00023287,2]
[337277488,1725573095203,-500.0,0.00023287,2]
[337277489,1725573095213,-3476.04,0.00023287,2]
[337277490,1725573095224,-745.29,0.00023287,2]
[337277491,1725573095234,-500.0,0.00023287,2]
[337277492,1725573095246,-500.0,0.00023287,2]
[337277493,1725573095256,-500.0,0.00023287,2]
[337277494,1725573095266,-500.0,0.00023287,2]
[337277495,1725573095276,-1053.94,0.00023287,2]
[337277496,1725573095286,-500.0,0.00023287,2]
[337277497,1725573095296,-500.0,0.00023287,2]
[337277498,1725573095306,-297.86594509,0.00023287,2]
[337277499,1725573095317,-500.0,0.00023287,2]
[337277500,1725573095327,-899.19,0.00023287,2]
[337277501,1725573095337,-500.0,0.00023287,2]
[337277502,1725573095347,-1880.59,0.00023287,2]
[337277503,1725573095357,-563.87,0.00023287,2]
[337277504,1725573095367,-500.0,0.00023287,2]
[337277505,1725573095377,-500.0,0.00023287,2]
[337277506,1725573095386,-453.63817819,0.0002332,4]
[337277507,1725573095395,-453.63817819,0.0002332,4]
[337277508,1725573095405,-1005.75569424,0.00023522,2]
[337277509,1725573095415,-877.66388314,0.00023522,2]
[337277510,1725573095425,-453.63817819,0.0002354,4]
[337277511,1725573095434,-453.63817819,0.0002354,4]
[337277512,1725573095444,-500.0,0.00023561,2]
[337277513,1725573095454,-500.0,0.00023561,2]
[337277514,1725573095465,-500.0,0.00023561,2]
[337277515,1725573095477,-500.0,0.00023561,2]
[337277516,1725573095487,-500.0,0.00023561,2]
[337277517,1725573095496,-1061.25,0.00023561,2]
[337277518,1725573095506,-888.02,0.00023561,2]
[337277519,1725573095517,-500.0,0.00023561,2]
[337277520,1725573095531,-500.0,0.00023561,2]
[337277521,1725573095541,-500.0,0.00023561,2]
[337277522,1725573095552,-500.0,0.00023561,2]
[337277523,1725573095562,-500.0,0.00023561,2]
[337277524,1725573095572,-510.43096104,0.00023561,2]
[337277525,1725573095582,-317.04288873,0.00023561,2]
[337277526,1725573095591,-500.0,0.00023561,2]
[337277527,1725573095602,-500.0,0.00023561,2]
[337277528,1725573095613,-500.0,0.00023561,2]
[337277529,1725573095626,-1260.83,0.00023561,2]
[337277530,1725573095637,-500.0,0.00023561,2]
[337277531,1725573095649,-500.0,0.00023561,2]
[337277532,1725573095659,-500.0,0.00023561,2]
[337277533,1725573095671,-500.0,0.00023561,2]
[337277534,1725573095682,-500.0,0.00023561,2]
[337277535,1725573095693,-500.0,0.00023561,2]
[337277536,1725573095704,-500.0,0.00023561,2]
[337277537,1725573095714,-500.0,0.00023561,2]
[337277538,1725573095723,-451.37243564,0.00023561,2]
[337277539,1725573095733,-500.0,0.00023561,2]
[337277540,1725573095743,-500.0,0.00023561,2]
[337277541,1725573095752,-500.0,0.00023561,2]
[337277542,1725573095761,-500.0,0.00023561,2]
[337277543,1725573095770,-829.3,0.00023561,2]
[337277544,1725573095779,-500.0,0.00023561,2]
[337277545,1725573095790,-267.31207294,0.00023561,2]
[337277546,1725573095801,-500.0,0.00023561,2]
[337277547,1725573095811,-500.0,0.00023561,2]
[337277548,1725573095823,-500.0,0.00023561,2]
[337277549,1725573095834,-500.0,0.00023561,2]
[337277550,1725573095845,-500.0,0.00023561,2]
[337277551,1725573095854,-500.0,0.00023561,2]
[337277552,1725573095864,-756.67,0.00023561,2]
[337277553,1725573095877,-500.0,0.00023561,2]
[337277554,1725573095888,-500.0,0.00023561,2]
[337277555,1725573095898,-500.0,0.00023561,2]
[337277556,1725573095910,-500.0,0.00023561,2]
[337277557,1725573095920,-500.0,0.00023561,2]
[337277558,1725573095929,-500.0,0.00023561,2]
[337277559,1725573095940,-500.0,0.00023561,2]
[337277560,1725573095951,-500.0,0.00023561,2]
[337277561,1725573095961,-500.0,0.00023561,2]
[337277562,1725573095973,-500.0,0.00023561,2]
[337277563,1725573095985,-500.0,0.00023561,2]
[337277564,1725573095995,-502.77013389,0.00023561,2]
[337277565,1725573096007,-500.0,0.00023561,2]
[337277566,1725573096018,-500.0,0.00023561,2]
[337277567,1725573096029,-500.0,0.00023561,2]
[337277568,1725573096041,-529.72,0.00023561,2]
[337277569,1725573096053,-500.0,0.00023561,2]
[337277570,1725573096064,-500.0,0.00023561,2]
[337277571,1725573096075,-500.0,0.00023561,2]
[337277572,1725573096087,-500.0,0.00023561,2]
[337277573,1725573096098,-1089.23,0.00023561,2]
[337277574,1725573096109,-776.91,0.00023561,2]
[337277575,1725573096120,-500.0,0.00023561,2]
[337277576,1725573096142,-500.0,0.00023561,2]
[337277577,1725573096152,-500.0,0.00023561,2]
[337277578,1725573096162,-500.0,0.00023561,2]
[337277579,1725573096172,-500.0,0.00023561,2]
[337277580,1725573096183,-500.0,0.00023561,2]
[337277581,1725573096193,-309.5056731,0.00023561,2]
[337277582,1725573096204,-1257.36,0.00023561,2]
[337277583,1725573096320,-500.0,0.00023561,2]
[337277584,1725573096330,-1799.22,0.00023561,2]
[337277585,1725573096340,-500.0,0.00023561,2]
[337277586,1725573096352,-872.21,0.00023561,2]
[337277587,1725573096362,-500.0,0.00023561,2]
[337277588,1725573096374,-500.0,0.00023561,2]
[337277589,1725573096384,-500.0,0.00023561,2]
[337277590,1725573096395,-500.0,0.00023561,2]
[337277591,1725573096406,-690.94,0.00023561,2]
[337277592,1725573096415,-500.0,0.00023561,2]
[337277593,1725573096427,-515.1989892,0.00023561,2]
[337277594,1725573096437,-500.0,0.00023561,2]
[337277595,1725573096448,-500.0,0.00023561,2]
[337277596,1725573096458,-500.0,0.00023561,2]
[337277597,1725573096468,-500.0,0.00023561,2]
[337277598,1725573096480,-500.0,0.00023561,2]
[337277599,1725573096491,-722.69,0.00023561,2]
[337277600,1725573096503,-500.0,0.00023561,2]
[337277601,1725573096515,-500.0,0.00023561,2]
[337277602,1725573096527,-500.0,0.00023561,2]
[337277603,1725573096538,-1492.06,0.00023561,2]
[337277604,1725573096547,-500.0,0.00023561,2]
[337277605,1725573096559,-500.0,0.00023561,2]
[337277606,1725573096570,-500.0,0.00023561,2]
[337277607,1725573096580,-500.0,0.00023561,2]
[337277608,1725573096590,-500.0,0.00023561,2]
[337277609,1725573096599,-500.0,0.00023561,2]
[337277610,1725573096611,-500.0,0.00023561,2]
[337277611,1725573096622,-500.0,0.00023561,2]
[337277612,1725573096632,-500.0,0.00023561,2]
[337277613,1725573096643,-802.19,0.00023561,2]
[337277614,1725573096652,-500.0,0.00023561,2]
[337277615,1725573096662,-500.0,0.00023561,2]
[337277616,1725573096671,-500.0,0.00023561,2]
[337277617,1725573096680,-500.0,0.00023561,2]
[337277618,1725573096689,-552.14,0.00023561,2]
[337277619,1725573096699,-500.0,0.00023561,2]
[337277620,1725573096708,-500.0,0.00023561,2]
[337277621,1725573096717,-500.0,0.00023561,2]
[337277622,1725573096727,-990.72,0.00023561,2]
[337277623,1725573096738,-500.0,0.00023561,2]
[337277624,1725573096747,-500.0,0.00023561,2]
[337277625,1725573096757,-500.0,0.00023561,2]
[337277626,1725573096767,-967.82,0.00023561,2]
[337277627,1725573096777,-888.41,0.00023561,2]
[337277628,1725573096786,-500.0,0.00023561,2]
[337277629,1725573096796,-606.39,0.00023561,2]
[337277630,1725573096806,-500.0,0.00023561,2]
[337277631,1725573096816,-500.0,0.00023561,2]
[337277632,1725573096825,-500.0,0.00023561,2]
[337277633,1725573096836,-1160.38,0.00023561,2]
[337277634,1725573096846,-1034.45,0.00023561,2]
[337277635,1725573096855,-500.0,0.00023561,2]
[337277636,1725573096865,-500.0,0.00023561,2]
[337277637,1725573096875,-500.0,0.00023561,2]
[337277638,1725573096884,-500.0,0.00023561,2]
[337277639,1725573096894,-500.0,0.00023561,2]
[337277640,1725573096903,-500.0,0.00023561,2]
[337277641,1725573096913,-483.47263726,0.00023561,2]
[337277642,1725573096922,-500.0,0.00023561,2]
[337277643,1725573096931,-500.0,0.00023561,2]
[337277644,1725573096941,-500.0,0.00023561,2]
[337277645,1725573096951,-500.0,0.00023561,2]
[337277646,1725573096960,-500.0,0.00023561,2]
[337277647,1725573096969,-500.0,0.00023561,2]
[337277648,1725573096978,-500.0,0.00023561,2]
[337277649,1725573096987,-500.0,0.00023561,2]
[337277650,1725573096997,-500.0,0.00023561,2]
[337277651,1725573097006,-516.86602499,0.00023561,2]
[337277652,1725573097015,-500.0,0.00023561,2]
[337277653,1725573097024,-500.0,0.00023561,2]
[337277654,1725573097035,-1055.78,0.00023561,2]
[337277655,1725573097045,-709.32,0.00023561,2]
[337277656,1725573097055,-500.0,0.00023561,2]
[337277657,1725573097065,-500.0,0.00023561,2]
[337277658,1725573097074,-528.03,0.00023561,2]
[337277659,1725573097084,-500.0,0.00023561,2]
[337277660,1725573097094,-500.0,0.00023561,2]
[337277661,1725573097104,-500.0,0.00023561,2]
[337277662,1725573097113,-500.0,0.00023561,2]
[337277663,1725573097122,-500.0,0.00023561,2]
[337277664,1725573097131,-500.0,0.00023561,2]
[337277665,1725573097153,-500.0,0.00023561,2]
[337277666,1725573097171,-500.0,0.00023561,2]
[337277667,1725573097192,-297.60353899,0.00023561,2]
[337277668,1725573097212,-500.0,0.00023561,2]
[337277669,1725573097231,-500.0,0.00023561,2]
[337277670,1725573097249,-1309.6,0.00023561,2]
[337277671,1725573097265,-597.29,0.00023561,2]
[337277672,1725573097283,-500.0,0.00023561,2]
[337277673,1725573097302,-707.89,0.00023561,2]
[337277674,1725573097321,-500.0,0.00023561,2]